Cogmind - Beta 15 @@@ ROGUE MODE // 2025.06.05 @ 12:26:30 Player: Fleshy Vegetable Bird Result: Destroyed by LE-GM0(R) with Subdweller Beam Cannon Performance ------------- Evolutions (0) 0 Regions Visited (2) 400 Robots Destroyed (34) 170 Value Destroyed (553) 553 Prototype IDs (11) 220 Alien Tech Used (0) 0 Bonus (-44) -44 TOTAL SCORE: 1299 Bonus ------- Friendly Fire -44 Cogmind --------- Core Integrity 0/250 Matter 475/500 Energy 250/250 System Corruption 4% Temperature Cool (9) Movement Rolling (95) Ox1 Location -10/Subcaves Parts ------- > --- POWER (1) -------- Ion Engine > --- PROPULSION (2) --- Wheel Wheel > --- UTILITY (2) ------ Large Storage Unit High-capacity Matter Pod > --- WEAPON (2) ------- Shotgun Shotgun > --- INVENTORY (15) --- Subdweller Power Source Subdweller Power Source Wheel Subdweller Monowheel Subdweller Optics Improved Terrain Scanner Seismic Detector Scrap Shield Tower Shield Makeshift System Shield Subdweller Laser Mining Laser Peak State ------------ > --- POWER ------------ Ion Engine > --- PROPULSION ------- Makeshift Leg Wheel > --- UTILITY ---------- Large Storage Unit Makeshift Thermal Plating > --- WEAPON ----------- Medium Laser Shotgun > --- INVENTORY -------- Subdweller Power Source Wheel Wheel Wheel Subdweller Monowheel High-capacity Matter Pod Structural Scanner Improved Terrain Scanner Seismic Detector Tower Shield Makeshift System Shield Subdweller Laser Shotgun Mining Laser [Rating: 18] Favorites ----------- Power Ion Engine Engine Ion Engine Propulsion Wheel Leg Makeshift Leg Wheel Wheel Utility Large Storage Unit Device Seismic Detector Storage Large Storage Unit Protection Makeshift Thermal Plating Weapon Shotgun Energy Gun Medium Laser Ballistic Gun Shotgun Special Weapon Mining Laser Build | -11 -10 -10 ------- Run | Yrd Mat Sub Slots Evolved . | . . . Power . | . . . Propulsion . | . . . Utility . | . . . Weapon . | . . . Parts Attached 30 | 8 12 10 Power 4 | 1 2 1 Engine 4 | 1 2 1 Core . | . . . Reactor . | . . . Propulsion 13 | 3 5 5 Treads . | . . . Leg 1 | . . 1 Wheel 12 | 3 5 4 Hover . | . . . Flight . | . . . Utility 5 | 2 1 2 Device 1 | 1 . . Storage 3 | 1 1 1 Processor . | . . . Hackware . | . . . Protection 1 | . . 1 Artifact . | . . . Weapon 8 | 2 4 2 Energy Gun 3 | 2 . 1 Energy Cannon . | . . . Ballistic Gun 4 | . 3 1 Ballistic Cannon . | . . . Launcher . | . . . Special Weapon 1 | . 1 . Impact Weapon . | . . . Slashing Weapon . | . . . Piercing Weapon . | . . . Special Melee Weapon . | . . . Unidentified Prototypes . | . . . Parts Lost 3 | . 1 2 Power 1 | . 1 . Propulsion 1 | . . 1 Utility 1 | . . 1 Weapon . | . . . Highest Loss Streak 1 | . 1 1 To Critical Strikes . | . . . Average Backups 12 | 3 13 13 Power 1 | . 1 1 Propulsion 3 | . 4 3 Utility 4 | 1 3 6 Weapon 3 | . 3 3 Tool/Special . | . . . Unused Backups 14 | 1 . 13 Power 2 | . . 2 Propulsion 3 | . . 3 Utility 8 | 1 . 7 Weapon 1 | . . 1 Tool/Special . | . . . Average Slot Usage (%) 99 | . 99 100 Engine 13 | . 13 14 Wheel 27 | . 27 28 Device 11 | . 14 7 Storage 14 | . 14 14 Protection 2 | . . 6 Energy Gun 7 | . 7 7 Ballistic Gun 18 | . 19 17 Special Weapon 2 | . 1 2 Peak Build Rating 18 | 8 10 18 Average Rating 10 | 5 9 13 On Entrance 6 | . 8 10 Naked Turns . | . . . Heaviest Build 35 | 14 32 35 Greatest Support 26 | 26 20 20 Greatest Overweight (x) 3 | 1 3 3 Average Overweight (x) 1 | . 1 1 Largest Inventory Capacity 15 | 8 15 15 Average Capacity 14 | 7 14 15 Most Carried 15 | 8 15 15 Average Carried 13 | 3 13 14 Final Capacity 15 | 8 15 15 Final Carried 15 | 8 15 14 Class Distribution -------------------- 51% | Scavenger-Mutant 48% | Mutant Dominant Class ---------------- Scavenger-Mutant | -10/Materials Scavenger-Mutant | -10/Subcaves Resources | -11 -10 -10 ----------- Run | Yrd Mat Sub Matter Collected 1231 | 280 483 468 Remotely . | . . . Salvage Created 863 | 185 441 237 Parts 74 | 18 46 10 Haulers Intercepted 2 | . 2 . Recyclers Shooed 1 | . 1 . Parts Field Recycled . | . . . Retrieved Matter . | . . . Parts Self-Destructed 4 | . . 4 Prevented . | . . . Kills | -11 -10 -10 ------- Run | Yrd Mat Sub Combat Hostiles Destroyed 19 | . 13 6 Guns 19 | . 13 6 Classes Destroyed 10 | 2 6 2 Worker 3 | . 3 . Tunneler 6 | 5 1 . Hauler 2 | . 2 . Recycler 1 | 1 . . Operator 1 | . 1 . Watcher 1 | . 1 . Swarmer 9 | . 9 . Grunt 4 | . 4 . Subdweller 6 | . . 6 Zionite 1 | . . 1 Best Kill Streak 6 | 3 6 2 Combat Bots Only 4 | . 4 2 Max Kills in Single Turn 2 | 1 2 1 Gunslinging 1 | . 1 . Exploded . | . . . Melee . | . . . Uniques/NPCs Destroyed . | . . . Combat | -11 -10 -10 -------- Run | Yrd Mat Sub Hostile Shots Fired 77 | . 44 33 Missed 17 | . 9 8 Hits 60 | . 35 25 Projectile 60 | . 35 25 Critical Strikes 2 | . . 2 Damage Taken 979 | . 366 613 Core 250 | . 69 181 Absorbed by Shields . | . . . Ignored by Resistances 20 | . . 20 Core Remaining (%) 100 | 100 . . Volleys Fired 104 | 15 56 33 Largest 2 | 2 2 2 Hottest 100 | 90 100 100 Shots Fired 195 | 30 103 62 Gun 182 | 30 95 57 Cannon . | . . . Launcher . | . . . Special 13 | . 8 5 Kinetic 115 | . 74 41 Thermal 80 | 30 29 21 Explosive . | . . . Electromagnetic . | . . . Robot Hit Streak 9 | 6 7 9 Robot Miss Streak 7 | 3 6 7 Penetration Max . | . . . Secondary Targets 3 | . 3 . Max Gunslinging Chain 1 | . 1 . Shots Hit Robots 132 | 19 67 46 Core Hits 59 | 7 32 20 Critical Kills . | . . . Critical Parts Destroyed 1 | . 1 . Critical Strikes 6 | . 2 4 Burn 4 | . 1 3 Destroy 2 | . 1 1 Melee Attacks . | . . . Impact . | . . . Slashing . | . . . Piercing . | . . . Sneak Attacks . | . . . Combat Hostiles . | . . . Follow-up Attacks . | . . . Damage Inflicted 1660 | 230 919 511 Guns 1660 | 230 919 511 Cannons . | . . . Explosions . | . . . Melee . | . . . Ramming . | . . . Kinetic 1148 | . 765 383 Thermal 512 | 230 154 128 Explosive . | . . . Electromagnetic . | . . . Impact . | . . . Slashing . | . . . Piercing . | . . . Highest Corruption 4 | . 4 4 Average Corruption 3 | . 3 4 Corruption Purged . | . . . Corruption Blocked . | . . . Effects 31 | . 16 15 Message Errors 8 | . 6 2 Matter Fused 5 | . 4 1 Heat Flow Errors 2 | . 1 1 Energy Discharges 4 | . 2 2 Data Loss (minor) 6 | . 2 4 Data Loss (major) 1 | . . 1 Misfires 2 | . . 2 Alerts 1 | . . 1 Weapon Failures 2 | . 1 1 Overload Shots . | . . . Overflow Damage . | . . . Projectiles . | . . . Explosions . | . . . Melee . | . . . Knockbacks . | . . . Impact . | . . . Kinetic . | . . . Secondary . | . . . Self-Inflicted Damage . | . . . Shots . | . . . Rammed . | . . . Targets Rammed . | . . . Kicked . | . . . Crushed . | . . . Highest Temperature 267 | 180 267 265 Average Temperature 59 | 61 42 142 Received Heat Transfer 534 | . 96 438 Siege Activations . | . . . Martial Activations . | . . . Shielding Activations . | . . . Robots Disrupted . | . . . Combat Hostiles . | . . . Robots Corrupted . | . . . Combat Hostiles . | . . . Parts Fried . | . . . Impact Corruptions . | . . . Robots Melted . | . . . Combat Hostiles . | . . . Parts Melted 3 | 2 . 1 Heat Transferred 1695 | 620 483 592 Parts Sabotaged . | . . . Parts Stolen . | . . . Parts Stripped . | . . . Power Chain Reactions . | . . . Alert | -11 -10 -10 ------- Run | Yrd Mat Sub Maximum Alert Level . | . . . Low Security (%) 100 | 100 100 . Level 1 . | . . . Level 2 . | . . . Level 3 . | . . . Level 4 . | . . . Level 5 . | . . . High Security . | . . . Max Security . | . . . Peak Influence 176 | 10 176 . Initial . | . . . Average 63 | 2 72 . Influence Increases 450 | 30 420 . Destroy 0b10 Robot/C 260 | . 260 . Destroy 0b10 Robot/NC 70 | 30 40 . Destroy Leader 46 | . 46 . Successful Hack 9 | . 9 . Destroy Structure 5 | . 5 . Lose Combat Pursuer 60 | . 60 . Influence Decreases 450 | 30 265 155 Entered New Map 75 | . . 75 Time Decay 365 | 30 255 80 Lost Part 10 | . 10 . Squads Dispatched 2 | . 2 . Investigation 1 | . 1 . Extermination . | . . . Reinforcement 1 | . 1 . Assault . | . . . Garrison . | . . . Intercept . | . . . Searches Triggered . | . . . Construction Impeded . | . . . Haulers Reinforced . | . . . Active Scanning Responses . | . . . Cargo Convoy Interrupts . | . . . Stealth | -11 -10 -10 --------- Run | Yrd Mat Sub Distress Signals . | . . . Communications Jammed . | . . . Distress Signals . | . . . Times Spotted 33 | . 25 8 Peak Tracking Total 4 | . 4 2 Tactical Retreats 4 | . 4 . Traps | -11 -10 -10 ------- Run | Yrd Mat Sub Traps Triggered 6 | . 5 1 Indirectly . | . . . Trap Hack Attempts . | . . . Triggered . | . . . Disarmed . | . . . Reprogrammed . | . . . Reused . | . . . Traps Extracted . | . . . Installed . | . . . Triggered . | . . . Machines | -11 -10 -10 ---------- Run | Yrd Mat Sub Machines Disabled 1 | . . 1 Max in Single Turn 1 | . . 1 Machines Repaired . | . . . Machines Dismantled . | . . . Machines Sabotaged . | . . . Overloaded Fab Kills . | . . . Hacking | -11 -10 -10 --------- Run | Yrd Mat Sub Machines Accessed 7 | . 5 2 Terminals 4 | . 4 . Fabricators . | . . . Repair Stations 1 | . 1 . Recycling Units . | . . . Scanalyzers . | . . . Garrison Access . | . . . Total Hacks 21 | . 11 10 Successful 15 | . 5 10 Failed 6 | . 6 . Catastrophic 2 | . 2 . Database Lockouts . | . . . Manual 9 | . 9 . Terminals 9 | . 9 . Fabricators . | . . . Repair Stations 2 | . 2 . Recycling Units . | . . . Scanalyzers . | . . . Garrison Access . | . . . Terminal Hacks 11 | . 1 10 Record 8 | . . 8 Robot Analysis 1 | . 1 . Open Door 1 | . . 1 Proto ID Catalog 1 | . . 1 Fabricator Hacks . | . . . Repair Station Hacks 1 | . 1 . Scan Component 1 | . 1 . Recycling Unit Hacks . | . . . Scanalyzer . | . . . Garrison Access Hacks . | . . . Unauthorized Hacks 3 | . 3 . Terminals 3 | . 3 . Track 1 | . 1 . Botnet 2 | . 2 . Fabricators . | . . . Repair Stations . | . . . Recycling Units . | . . . Scanalyzers . | . . . Garrison Access . | . . . Data Cores Recovered . | . . . Used . | . . . Hacking Detections 5 | . 5 . Full Trace Events . | . . . Feedback Events . | . . . Feedback Blocked . | . . . Robot Schematics Acquired . | . . . Robots Built . | . . . Authchips . | . . . Time . | . . . Total Robot Build Rating . | . . . Part Schematics Acquired . | . . . Parts Built . | . . . Authchips . | . . . Time . | . . . Total Part Build Rating . | . . . Parts Repaired . | . . . Time . | . . . Parts Recycled . | . . . Recycled Matter . | . . . Retrieved Matter . | . . . Retrieved Components . | . . . Parts Scanalyzed . | . . . Part Schematics Acquired . | . . . Parts Damaged . | . . . Bothacking | -11 -10 -10 ------------ Run | Yrd Mat Sub Used RIF Installer . | . . . Robots Hacked . | . . . Non-combat . | . . . Combat . | . . . Robot Hacks Applied . | . . . Relay Couplers Released . | . . . Fabnet Peak Effective % . | . . . Robots Rewired . | . . . Allies Hacked . | . . . Hacks Repelled . | . . . Allies | -11 -10 -10 -------- Run | Yrd Mat Sub Total Allies . | . . . Largest Group . | . . . Highest-Rated Group . | . . . Highest-Rated Ally . | . . . Total Orders . | . . . Ally Attacks . | . . . Total Damage . | . . . Kills . | . . . Allies Corrupted . | . . . Allies Melted . | . . . Intel | -11 -10 -10 ------- Run | Yrd Mat Sub Active Infowar (turns) 1199 | . 837 362 Seismic 1199 | . 837 362 Robot Analysis Total 1 | . 1 . Derelict Logs Recovered 2 | . . 2 Drone Launches . | . . . Drone Recoveries . | . . . Exploration | -11 -10 -10 ------------- Run | Yrd Mat Sub Turns Passed 1635 | 130 844 661 Spaces Moved 1162 | 74 595 493 Core 1 | 1 . . Treads . | . . . Legs . | . . . Wheels 1161 | 73 595 493 Hover . | . . . Flight . | . . . Fastest Speed 50 | 50 80 95 Average Speed 96 | 83 95 98 Slowest Speed 125 | 95 125 125 Overloaded Moves . | . . . Propulsion Burnouts . | . . . Robots Hopped . | . . . Potential Cave-ins . | . . . Cave-ins Triggered . | . . . Exploration Rate (%) 35 | 4 74 27 Regions Visited 2 Branch Regions 1 Pre-discovered Areas 2 | . . 2 Known Exits Taken . | . . . Unknown Exits Taken 2 | 1 1 . Scrap Searched 3 | . . 3 Spaces Dug 8 | . 8 . Terrain Destroyed 8 | . 8 . Melee . | . . . Projectile 8 | . 8 . AOE . | . . . Terrain Rammed . | . . . Walls Destroyed . | . . . Machines Disabled . | . . . Actions | -11 -10 -10 --------- Run | Yrd Mat Sub Total 1462 | 111 752 599 Wait 101 | . 66 35 Move 1160 | 73 594 493 Hop . | . . . Pick Up 36 | 13 12 11 Fast Attach 5 | 4 1 . Attach 8 | 4 1 3 Detach . | . . . Swap 24 | . 12 12 Drop 24 | 2 10 12 Fire 104 | 15 56 33 Melee . | . . . Ram . | . . . Kick . | . . . Crush . | . . . Escape Stasis . | . . . Rewire . | . . . Trap . | . . . Miscellaneous . | . . . Route ------- -11/Scrapyard -10/Materials (discovered 4 exits: [*Mat x2] / [*Min] / *Sub) -10/Subcaves History --------- Turn | Location | Event 26 | -11/Scrapyard | Discovered new exit (range 15) 131 | -11/Scrapyard | Entered Materials 161 | -10/Materials | Discovered new exit (range 4) 308 | -10/Materials | Build established: Mutant 319 | -10/Materials | Discovered new exit (range 3) 507 | -10/Materials | Discovered new exit (range 3) 571 | -10/Materials | Discovered new exit (range 7) 782 | -10/Materials | Build established: Scavenger-Mutant 975 | -10/Materials | Entered Subcaves 976 | -10/Subcaves | Approached by a straggling Scientist 983 | -10/Subcaves | Learned location of Mines (-8) 1059 | -10/Subcaves | Visited 4L-MR0's lab 1087 | -10/Subcaves | Found Tower Shield 1243 | -10/Subcaves | Learned Materials stockpile data 1263 | -10/Subcaves | Learned location of Zion (-7) 1263 | -10/Subcaves | Met a Zionite searching for "candidates" 1446 | -10/Subcaves | Ambushed by Subdweller buried in earth 1449 | -10/Subcaves | Core integrity fell below 50% 1468 | -10/Subcaves | Shifting Twisted Machinery released Mak. Shrapnel Gun 1631 | -10/Subcaves | Core integrity fell below 20% 1636 | -10/Subcaves | Destroyed by LE-GM0(R) with Subdweller Beam Cannon Last Messages --------------- 01521_ Acquired 69 matter. 4N-9OW(c): "I think it's somewhere northwest of here" 01552_ System corrupted: Component data lost. 4N-9OW(c): "I think it's somewhere north of here" 01607_ Triggered Piercing Trap. 01607_ Spikes shoot up from the floor. 01607_ Critical hit (Impale). 01621_ System corrupted: Energy discharge (-57). 01621_ Acquired 19 matter. 01623_ Acquired 8 matter. 01625_ Mak. Thermal Plating destroyed. 01626_ Acquired 10 matter. 01627_ Acquired 7 matter. 01627_ 4N-9OW(c) triggered Piercing Trap. 01627_ Spikes shoot up from the floor. 01627_ 4N-9OW(c) suffers critical hit (Impale). 01628_ K8-8HJ(R) destroyed. Map ----- +----------------------------------------------------+ | ???????????????????????????########## | | ????????????????????????????????????#### # | | ???????????????????????????????????????## ### ## | | ????????????????????????????????????????### ## # | | ?????????????????????????????????????#### ## ## | | ?????????????????????????????????????# # | | ?????????????????????????????????????# ## # ### | | ?????????????????????????????????????# ########?? | | ????????????????????????????????????## # ##? | | ????????????????????????????????????# # #? | | ???????????????????????????????????### ## #? | | ???????????????????????????????????# ## #? | | ???????????????????????????????????# #? | | ???????????????????????????????????# ## | | ???????????????????????????????????## | | ????????????????????????????????????## | | ?????????????????????????????????????### | | ????????????????????????"??????????? #?## | | ?????????????????????""""?????????? ??## | | ?????????????????##???"""?#??????? ????# | | ?????????????????# ??#""# ??????" ?????# ## | | ?????????????????# ?#""R ?????" #??????#### | | ????????????????### ##^%& ????# ##????????# | | ??????????# ### ^!![##### #????????## | | ?????????? !## ###??????## | | ?????????? !@= #?????## | | ???????????????# [ #???????# | | ????????????# # ## ##???????## | | ????????????# ^ ##??##????????## | | ???????????# ## ##???###??#### | | ??????????????### ##### #### # | | ????????????????##^ ## | | ?????????????????# ?# | | ?????????????????# #### ######## # | | ?????????????????# ;#???# ##??????##### | | ????????????????# ##????###???????????# # | | ????????????????# #???????????????????## ### | | ????????????????# ###????????????????????# ##?? | | ????????????????#????????????????????????######??? | | ?????????????????????????????????????????????????? | | ?????????????????????????????????????????????????? | | ?????????????????????????????????????????????????? | | ?????????????????????????????????????????????????? | | ?????????????????????????????????????????????????? | | ?????????????????????????????????????????????????? | | ?????????????????????????????????????????????????? | | ?????????????????????????????????????????????????? | | ?????????????????????????????????????????????????? | | ?????????????????????????????????????????????????? | | ?????????????????????????????????????????????????? | +----------------------------------------------------+ Best States ------------- Heat Dissipation 25 Energy Generation 10 Energy Capacity 250 Matter Stores 491 Matter Capacity 500 Sight Range 16 Terrain Scan Density 10 Armor Coverage 100 Resistance: TH 10 Evasion (%) 44 Item Schematics ----------------- None Robot Schematics ------------------ None Fabricated ------------ Nothing Repaired ---------- Nothing Alien Tech Used ----------------- None Achievements -------------- None Challenges ------------ None Game ------ Seed MicrodissipatorDefenseFrame Manual? 0 Play Time 00:17:50 Cumulative 362.8 hours Start 2025.06.05 @ 12:09:17 End 2025.06.05 @ 12:26:30 Sessions 1 Manual Loads 0 Difficulty Rogue Special Mode None Game No. 407 Rogue 407 Adventurer 0 Explorer 0 Win Type - Total 6 Types 3/1/1/1/0/0/0/0/0/0 Lore% 65 Gallery% 70 Achievement% 68 Wizard Run 0 Options --------- Layout 1 ASCII 0 Keyboard 0 Movement Numpad Keybinds 0 Fullscreen 1 Font 32/SmallcapsGlow Map View 50x35 Zoom Use 0% Tactical HUD 1 Map Filters NONE Filters NONE Steam 1 RUN: 46ea2628-887b-4dba-827a-a4a1302ad51c